bitfinex/quotes_ETHUSD_20250220
["timestamp","ask_amount","ask_price","bid_price","bid_amount"]
[1740055991566,0.55,2743.6,2743.4,3.6451]
[1740055991986,0.55,2743.6,2743.5,0.09111229]
[1740055992493,0.55,2743.6,2743.3,3.64518]
[1740055992789,2.83,2743.7,2743.5,3.73608229]
[1740055992985,2.83,2743.7,2743.6,3.64484]
[1740055993192,2.83,2743.7,2743.6,3.73595229]
[1740055993690,2.83,2743.7,2743.6,0.09111229]
[1740055993889,2.83,2743.7,2743.6,3.73595229]
[1740055994291,2.83,2743.7,2743.6,0.09111229]
[1740055994597,0.55,2743.9,2743.6,0.09111229]
[1740055994900,0.55,2743.9,2743.3,0.7857]
[1740055994901,0.55,2743.9,2743.5,3.64491]
[1740055995113,4.1945,2743.9,2743.7,0.09111229]
[1740055995258,4.1945,2743.9,2743.5,0.259]
[1740055995458,4.1945,2743.9,2743.8,0.09111229]
[1740055995726,4.1945,2743.9,2743.5,0.259]
[1740055995904,0.55,2743.9,2743.8,0.09111229]
[1740055996107,4.19444,2743.9,2743.5,3.90397]
[1740055996267,0.55,2743.9,2743.8,0.09111229]
[1740055996462,4.19444,2743.9,2743.5,0.259]
[1740055996663,1.3039,2743.7,2743.5,0.259]
[1740055999391,0.55,2743.8,2743.5,0.259]
[1740056000217,4.19458,2743.8,2743.5,0.259]
[1740056001222,0.55,2743.8,2743.5,0.259]
[1740056002298,0.55,2743.8,2743.5,3.90394]
[1740056002783,2.9796,2744.0,2743.6,3.64475]
[1740056003583,0.55,2743.9,2743.6,3.64475]
[1740056007553,6.62394,2744.0,2743.6,3.64475]
[1740056008250,2.9796,2744.0,2743.6,3.64475]
[1740056009144,6.62392,2744.0,2743.6,3.64475]
[1740056009844,2.9796,2744.0,2743.5,3.90392]
[1740056010229,2.9796,2744.0,2743.7,3.6447]
[1740056010855,2.9796,2744.0,2743.8,0.08778139]
[1740056011019,2.9796,2744.0,2743.7,3.6447]
[1740056011214,2.9796,2744.0,2743.8,0.08778139]
[1740056011719,2.9796,2744.0,2743.9,0.08778139]
[1740056012229,2.9796,2744.0,2743.7,3.64465]
[1740056012546,2.9796,2744.0,2743.8,0.08778139]
[1740056012903,2.9796,2744.0,2743.7,3.64465]
[1740056013233,2.9796,2744.0,2743.8,0.08778139]
[1740056013548,2.9796,2744.0,2743.6,3.64484]
[1740056013718,2.9796,2744.0,2743.9,0.08778139]
[1740056013921,2.9796,2744.0,2743.6,3.64478]
[1740056014237,2.9796,2744.0,2743.7,0.08778139]
[1740056015321,2.9796,2744.0,2743.7,4.51276139]
[1740056016957,2.9796,2744.0,2743.8,3.64451]
[1740056017155,0.1496,2744.0,2743.8,3.64451]
[1740056017456,0.1496,2744.0,2743.8,7.28902]
[1740056017658,0.1496,2744.0,2743.9,3.73222139]
[1740056018020,0.1496,2744.0,2743.9,4.4933509]
[1740056018359,0.1496,2744.0,2743.9,5.2753509]
[1740056021373,0.1496,2744.0,2743.9,4.51422139]
[1740056022067,0.1496,2744.0,2743.9,0.08778139]
[1740056022271,0.1496,2744.0,2743.7,3.64463]
[1740056022481,0.1496,2744.0,2743.9,0.08774401]
[1740056022769,0.8297,2743.9,2743.7,0.258]
[1740056022920,4.47415,2743.9,2743.7,0.258]
[1740056023273,0.8297,2743.9,2743.7,0.258]
[1740056023458,0.8297,2743.9,2743.8,0.08774401]
[1740056023957,0.8297,2743.9,2743.8,0.0878561]
[1740056024153,0.8297,2743.9,2743.7,0.258]
[1740056024355,4.47416,2743.9,2743.8,0.0878561]
[1740056024737,4.47416,2743.9,2743.7,0.258]
[1740056024934,0.8297,2743.9,2743.8,0.08786357]
[1740056025140,0.8297,2743.9,2743.7,0.258]
[1740056025317,0.8297,2743.9,2743.8,0.08786357]
[1740056025524,3.64466,2743.8,2743.4,0.258]
[1740056027238,3.64473,2743.7,2743.4,0.258]
[1740056028248,0.763,2743.6,2743.1,0.005]
[1740056028426,0.763,2743.6,2743.2,3.90336]
[1740056028625,0.763,2743.6,2743.2,3.64536]
[1740056028826,0.763,2743.6,2743.2,3.90336]
[1740056029707,0.763,2743.6,2743.2,3.90329]
[1740056030066,0.763,2743.6,2743.2,7.54858]
[1740056030510,0.763,2743.6,2743.2,3.90329]
[1740056030884,0.763,2743.6,2743.4,3.64507]
[1740056031194,7.24389,2743.8,2743.4,3.64507]
[1740056032094,7.24389,2743.8,2743.6,3.64482]
[1740056032095,3.5993,2743.8,2743.6,3.64482]
[1740056032297,2.83,2743.8,2743.6,3.64482]
[1740056033912,2.83,2743.8,2743.7,3.64471]
[1740056034108,2.9796,2744.0,2743.7,3.64471]
[1740056034420,2.9796,2744.0,2743.8,3.64453]
[1740056035288,2.9796,2744.0,2743.7,3.64468]
[1740056035687,2.9796,2744.0,2743.8,3.64458]
[1740056036183,2.9796,2744.0,2743.7,3.64469]
[1740056037001,2.9796,2744.0,2743.6,3.64481]
[1740056037206,2.9796,2744.0,2743.6,3.64475]
[1740056037816,2.9796,2744.0,2743.6,7.28951]
[1740056038708,2.9796,2744.0,2743.7,0.0879234]
[1740056042327,2.9796,2744.0,2743.6,3.64477]
[1740056042645,2.9796,2744.0,2743.8,0.0879234]
[1740056042922,2.9796,2744.0,2743.6,3.64477]
[1740056043227,5.9796,2744.0,2743.9,0.08797572]
[1740056043426,5.9796,2744.0,2743.5,4.67855]
[1740056043578,5.9796,2744.0,2743.9,0.08797572]
[1740056043777,5.9796,2744.0,2743.6,3.64478]
[1740056043977,5.9796,2744.0,2743.9,0.08797572]
[1740056044179,5.9796,2744.0,2743.6,3.64478]
[1740056044417,10.17392,2744.0,2743.9,0.08797572]
[1740056044634,4.19452,2743.9,2743.5,0.258]
[1740056044832,4.39899,2743.7,2743.3,0.7983]
[1740056045122,7.22899,2743.7,2743.4,0.258]
[1740056045289,0.55,2743.6,2743.4,0.258]
[1740056045896,0.55,2743.6,2743.4,3.90308]
[1740056047382,0.494553,2743.6,2743.4,3.90308]
[1740056047583,3.5842,2743.7,2743.4,3.90308]
[1740056048636,3.5842,2743.7,2743.4,5.56123424]
[1740056048840,2.83,2743.7,2743.6,3.64484]
[1740056050916,6.7778,2744.0,2743.7,3.64468]
[1740056051344,6.7778,2744.0,2743.6,3.64483]
[1740056053536,6.7778,2744.0,2743.7,0.08504995]
[1740056054238,10.42212,2744.0,2743.7,0.08504995]
[1740056055047,10.42212,2744.0,2743.7,0.08504995]
[1740056055883,6.7778,2744.0,2743.7,0.08504995]
[1740056057055,10.42216,2744.0,2743.7,0.08504995]
[1740056059011,0.55,2743.9,2743.7,0.08504995]
[1740056059212,0.55,2743.9,2743.5,3.64497]
[1740056059422,0.55,2743.9,2743.8,0.08505741]
[1740056059638,4.19445,2743.9,2743.5,3.64497]
[1740056059840,4.19445,2743.9,2743.8,0.08505741]
[1740056060128,0.55,2743.9,2743.8,0.08505741]
[1740056060322,0.55,2743.9,2743.6,3.64484]
[1740056060540,0.55,2743.9,2743.8,0.08505741]
[1740056060761,0.55,2743.9,2743.6,3.64477]
[1740056061063,0.55,2743.9,2743.8,0.08505741]
[1740056061266,0.55,2743.9,2743.5,3.64497]
[1740056061432,0.55,2743.9,2743.8,0.08505741]
[1740056061977,0.55,2743.9,2743.6,3.64476]
[1740056062132,0.55,2743.9,2743.8,0.08505741]
[1740056062327,0.55,2743.9,2743.6,3.64476]
[1740056062534,0.55,2743.9,2743.8,0.08505741]
[1740056062845,0.55,2743.9,2743.6,3.64476]
[1740056063054,0.55,2743.9,2743.8,0.08505741]
[1740056063262,0.55,2743.9,2743.6,3.64476]
[1740056063432,0.55,2743.9,2743.8,0.08505741]
[1740056063634,0.55,2743.9,2743.6,3.64476]
[1740056063866,0.55,2743.9,2743.8,0.08505741]
[1740056064065,4.19444,2743.9,2743.4,0.258]
[1740056064224,4.19444,2743.9,2743.8,0.08505741]
[1740056064429,0.55,2743.6,2743.2,0.258]
[1740056064630,1.3581,2743.6,2743.2,3.90335]
[1740056064863,1.3581,2743.6,2743.2,1.094097]
[1740056065183,1.3581,2743.6,2743.2,4.739397]
[1740056067351,5.00295,2743.6,2743.2,4.739397]
[1740056067574,5.00295,2743.6,2743.2,3.9033]
[1740056068596,5.00295,2743.6,2743.3,0.08529662]
[1740056068794,7.83295,2743.6,2743.3,0.08529662]
[1740056074175,0.8031,2743.4,2743.3,0.08529662]
[1740056074375,4.44821,2743.4,2743.1,0.005]
[1740056074577,4.44821,2743.4,2743.3,0.08529662]
[1740056074781,4.44821,2743.4,2743.1,0.005]
[1740056075009,4.99821,2743.4,2743.3,0.08529662]
[1740056075306,4.19531,2743.3,2743.1,0.005]
[1740056075864,7.84064,2743.3,2743.1,0.005]
[1740056076202,4.19537,2743.2,2743.1,0.005]
[1740056076605,0.55,2743.2,2743.1,0.005]
[1740056083470,0.55,2743.2,2743.1,0.09058822]
[1740056091414,2.83,2743.3,2743.2,3.64537]
[1740056091713,2.83,2743.3,2743.2,6.36986914]
[1740056092714,2.83,2743.6,2743.3,3.64521]
[1740056093449,2.83,2743.6,2743.4,0.08561065]
[1740056093879,2.83,2743.6,2743.2,8.94887424]
[1740056094075,2.83,2743.6,2743.3,0.08561065]
[1740056094272,6.47485,2743.6,2743.3,0.08561065]
[1740056094516,0.7919,2743.4,2743.3,0.08561065]
[1740056094718,1.3419,2743.4,2743.1,0.263]
[1740056094879,0.55,2743.3,2743.1,0.005]
[1740056096705,4.19524,2743.3,2743.1,0.005]
[1740056097808,0.55,2743.3,2743.1,0.005]
[1740056098707,0.55,2743.3,2743.2,0.0856929]
[1740056104543,0.7919,2743.4,2743.2,0.9072929]
[1740056104544,0.55,2743.4,2743.2,0.9072929]
[1740056104962,4.19516,2743.4,2743.2,0.9072929]
[1740056105133,0.55,2743.4,2743.2,0.9072929]
[1740056105340,6.47492,2743.6,2743.2,4.5525829]
[1740056105965,2.83,2743.6,2743.3,3.64516]
[1740056106163,2.83,2743.6,2743.5,3.64497]
[1740056106391,2.83,2743.6,2743.5,4.41567]
[1740056106676,2.83,2743.6,2743.5,4.50142272]
[1740056107270,3.38,2743.6,2743.5,0.08575272]
[1740056107578,3.38,2743.6,2743.3,3.64523]
[1740056107733,3.38,2743.6,2743.5,0.08575272]
[1740056107930,3.38,2743.6,2743.3,3.64523]
[1740056108129,3.38,2743.6,2743.5,0.08575272]
[1740056108325,3.38,2743.6,2743.3,3.64523]
[1740056108664,3.38,2743.6,2743.5,0.08575272]
[1740056108867,3.38,2743.6,2743.3,3.64523]
[1740056109468,3.38,2743.6,2743.4,0.08575272]
[1740056115245,2.83,2743.6,2743.5,3.64497]
[1740056115444,2.83,2743.6,2743.5,6.11517424]
[1740056115645,2.9796,2744.0,2743.7,3.64468]
[1740056116090,2.9796,2744.0,2743.8,0.08542374]
[1740056116593,3.5296,2744.0,2743.9,0.08542374]
[1740056117489,3.5296,2744.0,2743.8,3.64457]
[1740056117677,3.5296,2744.0,2743.9,0.08542374]
[1740056120893,3.5296,2744.0,2743.7,1.65820424]
[1740056121060,3.5296,2744.0,2743.9,0.08542374]
[1740056121260,3.5296,2744.0,2743.8,3.64445]
[1740056121490,3.5296,2744.0,2743.9,0.08542374]
[1740056123295,2.9796,2744.0,2743.9,0.08542374]
[1740056123454,2.9796,2744.0,2743.9,3.72986374]
[1740056123654,2.9796,2744.0,2743.9,4.6271888]
[1740056123851,2.9796,2744.0,2743.9,4.71261254]
[1740056125695,2.9796,2744.0,2743.9,1.06817254]
[1740056125899,2.9796,2744.0,2743.9,0.08542374]
[1740056130696,2.9796,2744.0,2743.7,3.64468]
[1740056130882,2.9796,2744.0,2743.9,0.08516956]
[1740056131196,2.9796,2744.0,2743.7,3.64468]
[1740056131396,2.9796,2744.0,2743.9,0.08516956]
[1740056131704,2.9796,2744.0,2743.7,3.64468]
[1740056131885,2.9796,2744.0,2743.9,0.08516956]
[1740056132063,2.9796,2744.0,2743.7,3.64468]
[1740056132259,2.9796,2744.0,2743.9,0.08516956]
[1740056132479,2.9796,2744.0,2743.7,3.64468]
[1740056132697,2.9796,2744.0,2743.9,0.08516956]
[1740056133176,2.9796,2744.0,2743.7,3.64468]
[1740056133513,2.9796,2744.0,2743.9,0.08516956]
[1740056134016,2.9796,2744.0,2743.7,3.64468]
[1740056134177,2.9796,2744.0,2743.9,0.08516956]
[1740056134377,2.9796,2744.0,2743.7,3.64468]
[1740056134578,2.9796,2744.0,2743.9,0.08516956]
[1740056134805,2.9796,2744.0,2743.7,3.64468]
[1740056135020,2.9796,2744.0,2743.9,0.08516956]
[1740056135382,2.9796,2744.0,2743.6,4.40512]
[1740056135589,2.9796,2744.0,2743.9,0.08516956]
[1740056135917,2.9796,2744.0,2743.9,0.08509481]
[1740056136109,2.9796,2744.0,2743.7,3.64464]
[1740056136422,2.9796,2744.0,2743.8,0.08509481]
[1740056136624,2.9796,2744.0,2743.7,3.64464]
[1740056136828,2.9796,2744.0,2743.9,0.08509481]
[1740056136998,2.9796,2744.0,2743.7,3.64464]
[1740056137201,2.9796,2744.0,2743.9,0.08509481]
[1740056137385,2.9796,2744.0,2743.7,3.64464]
[1740056137584,8.00711,2744.0,2743.9,0.08509481]
[1740056137789,4.19454,2743.9,2743.6,0.258]
[1740056138030,3.64458,2743.8,2743.6,0.258]
[1740056138182,3.64458,2743.8,2743.7,0.08509481]
[1740056139732,4.98008,2743.8,2743.7,0.08509481]
[1740056139933,3.64495,2743.6,2743.3,0.258]
[1740056140248,3.64495,2743.6,2743.1,0.005]
[1740056140249,4.43061,2743.4,2743.1,0.005]
[1740056141025,0.7855,2743.4,2743.1,0.005]
[1740056142748,4.43062,2743.4,2743.1,0.005]
[1740056143555,4.43062,2743.4,2743.2,0.0789178]
[1740056145623,8.07586,2743.4,2743.2,0.0789178]
[1740056145978,4.43062,2743.4,2743.2,0.0789178]
[1740056146125,3.64524,2743.3,2743.2,0.0789178]
[1740056150273,4.43062,2743.4,2743.2,0.0789178]
[1740056150974,3.64524,2743.3,2743.2,0.0789178]
[1740056151877,4.43062,2743.4,2743.2,0.0789178]
[1740056152084,3.64524,2743.3,2743.2,0.0789178]
[1740056152385,4.43062,2743.4,2743.2,0.0789178]
[1740056155152,3.64524,2743.3,2743.2,0.0789178]
[1740056156038,0.7855,2743.4,2743.2,0.0789178]
[1740056156238,4.43063,2743.4,2743.2,0.0789178]
[1740056159472,0.7855,2743.4,2743.2,0.0789178]
[1740056159679,3.64524,2743.3,2743.2,0.0789178]
[1740056160241,4.43062,2743.4,2743.2,0.0789178]
[1740056160854,3.64524,2743.3,2743.2,0.0789178]
[1740056162467,0.7855,2743.4,2743.2,0.0789178]
[1740056163436,4.43061,2743.4,2743.2,0.0789178]
[1740056168919,0.7855,2743.4,2743.2,0.0789178]
[1740056169498,7.02506,2743.5,2743.2,0.0789178]
[1740056171890,2.83,2743.5,2743.4,6.15343357]
[1740056172786,2.83,2743.9,2743.4,2.50832357]
[1740056172992,2.83,2743.9,2743.5,3.64496]
[1740056173218,2.83,2743.9,2743.5,3.72423608]
[1740056173423,2.83,2743.9,2743.6,3.64481]
[1740056173713,2.83,2743.9,2743.7,3.64463]
[1740056173876,2.83,2743.9,2743.7,3.72390608]
[1740056174496,2.83,2743.9,2743.7,4.49850608]
[1740056174689,2.83,2743.9,2743.7,4.49857608]
[1740056174894,0.1496,2744.0,2743.7,1.93201872]
[1740056175116,0.1496,2744.0,2743.8,3.6445]
[1740056175583,0.1496,2744.0,2743.9,0.07927608]
[1740056176212,0.1496,2744.0,2743.7,4.41923]
[1740056176503,0.1496,2744.0,2743.9,0.07927608]
[1740056176710,0.1496,2744.0,2743.7,4.41923]
[1740056176915,0.1496,2744.0,2743.9,0.07927608]
[1740056177086,0.1496,2744.0,2743.8,3.64457]
[1740056177296,0.1496,2744.0,2743.9,0.07927608]
[1740056178229,0.1496,2744.0,2743.7,0.258]
[1740056178382,0.1496,2744.0,2743.9,0.07927608]
[1740056178585,0.1496,2744.0,2743.7,0.258]
[1740056178920,0.1496,2744.0,2743.8,0.07927608]
[1740056179282,0.1496,2744.0,2743.7,0.258]
[1740056179479,0.1496,2744.0,2743.9,0.07927608]
[1740056179718,0.1496,2744.0,2743.7,3.90263]
[1740056179947,0.1496,2744.0,2743.9,0.07927608]
[1740056180098,0.1496,2744.0,2743.8,0.07888051]
[1740056180295,0.1496,2744.0,2743.7,3.90263]
[1740056180495,0.1496,2744.0,2743.9,0.07888051]
[1740056180711,0.1496,2744.0,2743.7,3.90263]
[1740056181042,0.1496,2744.0,2743.7,4.90379642]
[1740056181346,0.1496,2744.0,2743.8,0.07888051]
[1740056181699,0.1496,2744.0,2743.8,3.64456]
[1740056182009,0.1496,2744.0,2743.9,0.07888051]
[1740056183023,0.1496,2744.0,2743.7,4.90386642]
[1740056183333,0.1496,2744.0,2743.9,0.07888051]
[1740056183531,0.1496,2744.0,2743.7,3.9027]
[1740056184012,0.1496,2744.0,2743.8,3.72344051]
[1740056185910,0.1496,2744.0,2743.8,3.72337051]
[1740056187697,0.1496,2744.0,2743.8,4.28732799]
[1740056189112,0.1496,2744.0,2743.8,3.72337051]
[1740056192460,0.1496,2744.0,2743.8,4.48067051]
[1740056193013,0.9142,2744.0,2743.8,0.07888051]
[1740056193613,0.9142,2744.0,2743.9,0.07888797]
[1740056193945,0.9142,2744.0,2743.7,3.90265]
[1740056194126,4.19445,2743.9,2743.7,0.258]
[1740056195665,0.55,2743.9,2743.7,0.258]
[1740056196613,3.38,2743.9,2743.7,0.258]
[1740056197517,3.38,2743.9,2743.5,3.64486]
[1740056197518,7.02446,2743.9,2743.5,3.64486]
[1740056198023,7.02446,2743.9,2743.5,7.28977]
[1740056198218,3.38,2743.9,2743.5,3.64486]
[1740056198418,3.38,2743.9,2743.6,3.64478]
[1740056198622,3.38,2743.9,2743.7,3.64469]
[1740056200542,3.38,2743.9,2743.6,3.64483]
[1740056201050,3.38,2743.9,2743.7,3.64469]
[1740056203634,3.38,2743.9,2743.8,3.72355754]
[1740056203969,3.38,2743.9,2743.8,0.07897754]
[1740056204149,2.83,2743.9,2743.8,3.72355754]
[1740056204322,0.1496,2744.0,2743.9,4.45284]
[1740056204728,0.1496,2744.0,2743.9,4.53154885]
[1740056218916,0.1496,2744.0,2743.9,4.45284]
[1740056219414,0.1496,2744.0,2743.9,4.53131006]
[1740056231333,0.1496,2744.0,2743.9,4.56775075]
[1740056231534,0.1496,2744.0,2743.9,5.58026518]
[1740056244264,0.1496,2744.0,2743.9,4.77186518]
[1740056252019,0.7941,2744.4,2744.1,3.64412]
[1740056252261,0.7941,2744.4,2744.2,0.07838052]
[1740056260638,0.7941,2744.4,2744.2,3.64404]
[1740056260818,0.7941,2744.4,2744.3,0.07838052]
[1740056261025,0.7941,2744.4,2744.2,3.64404]
[1740056261224,0.7941,2744.4,2744.3,0.07838052]
[1740056261424,0.7941,2744.4,2744.2,3.64404]
[1740056261629,0.7941,2744.4,2744.3,0.07838052]
[1740056261924,0.7941,2744.4,2744.2,3.64404]
[1740056262124,0.7941,2744.4,2744.3,0.07838052]
[1740056262374,0.7941,2744.4,2744.2,3.64404]
[1740056262685,0.7941,2744.4,2744.3,0.07838052]
[1740056262986,0.7941,2744.4,2744.2,3.64404]
[1740056263158,0.7941,2744.4,2744.3,0.07838052]
[1740056263359,0.7941,2744.4,2744.2,3.64404]
[1740056263560,0.7941,2744.4,2744.3,0.07838052]
[1740056263763,0.7941,2744.4,2744.1,3.64412]
[1740056263942,0.7941,2744.4,2744.3,0.07830591]
[1740056264143,0.7941,2744.4,2744.1,3.64412]
[1740056264678,0.7941,2744.4,2744.2,0.07830591]
[1740056275164,0.7941,2744.4,2743.9,3.64436]
[1740056275365,3.64395,2744.3,2744.0,0.441246]
[1740056277297,3.64395,2744.3,2743.9,3.64436]
[1740056278000,4.43789,2744.4,2743.9,3.64432]
[1740056278484,4.43789,2744.4,2744.0,0.07820889]
[1740056280308,4.43789,2744.4,2744.0,3.72250889]
[1740056280603,0.7941,2744.4,2744.0,0.07820889]
[1740056280812,3.64393,2744.3,2744.0,0.07820889]
[1740056281106,3.64393,2744.3,2744.1,0.07820889]
[1740056281309,3.64393,2744.3,2743.9,3.64444]
[1740056281480,3.64393,2744.3,2744.2,0.07820889]
[1740056281661,3.64393,2744.3,2743.9,3.64444]
[1740056281861,3.64393,2744.3,2744.0,0.07820889]
[1740056283289,4.53709,2744.4,2744.0,0.07820889]
[1740056285810,0.8933,2744.4,2744.0,0.07820889]
[1740056286023,3.64392,2744.3,2744.0,0.07820889]
[1740056287319,4.5371,2744.4,2744.0,0.07820889]
[1740056287667,0.8933,2744.4,2744.0,0.07820889]
[1740056287900,3.64392,2744.3,2744.0,0.07820889]
[1740056289213,3.64392,2744.3,2744.0,0.03153053]
[1740056289382,3.64392,2744.3,2744.0,0.07595504]
[1740056298894,4.53709,2744.4,2744.0,0.07595504]
[1740056299228,0.0992,2744.4,2744.3,4.42411]
[1740056299380,0.0992,2744.4,2744.3,4.71854412]
[1740056299580,0.0992,2744.4,2744.3,4.79443943]
[1740056300427,0.0992,2744.4,2744.3,4.75800538]
[1740056300755,0.0992,2744.4,2744.3,5.76403034]
[1740056302745,2.83,2745.5,2745.3,3.64256]
[1740056302942,2.83,2745.5,2745.2,1.0768]
[1740056303151,2.83,2745.5,2745.4,0.07541055]
[1740056303355,2.83,2745.5,2745.2,1.0768]
[1740056303525,2.83,2745.5,2745.4,0.07541055]
[1740056303728,2.83,2745.5,2745.2,1.0768]
[1740056303898,2.83,2745.5,2745.4,0.07541055]
[1740056304098,2.83,2745.5,2745.2,1.0768]
[1740056304348,2.83,2745.5,2745.4,0.07541055]
[1740056304511,2.83,2745.5,2745.2,1.0768]
[1740056304712,2.83,2745.5,2745.4,0.07541055]
[1740056304945,2.83,2745.5,2745.2,4.71949]
[1740056305245,2.83,2745.5,2745.4,0.07541055]
[1740056305541,2.83,2745.5,2745.2,4.71949]
[1740056305844,2.83,2745.5,2745.4,0.07519431]
[1740056306001,2.83,2745.5,2745.2,1.913024]
[1740056306201,7.45944,2745.7,2745.4,0.07519431]
[1740056306401,7.45944,2745.7,2745.2,5.555724]
[1740056306633,7.45944,2745.7,2745.5,0.07519431]
[1740056306801,7.45944,2745.7,2745.2,5.555724]
[1740056307001,8.00944,2745.7,2745.6,0.07519431]
[1740056307202,8.00944,2745.7,2745.3,0.9198474]
[1740056307398,8.00944,2745.7,2745.6,0.0725088]
[1740056307622,8.00944,2745.7,2745.3,0.9198474]
[1740056307822,8.00944,2745.7,2745.6,0.0699192]
[1740056308054,8.00944,2745.7,2745.3,0.9198474]
[1740056308249,8.00944,2745.7,2745.6,0.0699192]
[1740056308542,8.00944,2745.7,2745.4,0.19966474]
[1740056308751,8.00944,2745.7,2745.6,0.0699192]
[1740056308954,2.83,2745.8,2745.5,3.64232]
[1740056309134,2.83,2745.8,2745.6,0.45411767]
[1740056310050,2.83,2745.8,2745.6,4.09629767]
[1740056310253,2.83,2745.8,2745.6,0.45411767]
[1740056310850,2.83,2745.8,2745.6,4.09622767]
[1740056311254,2.83,2745.8,2745.6,4.88892767]
[1740056311547,2.83,2745.8,2745.7,0.48889277]
[1740056311705,2.83,2745.8,2745.7,0.55783505]
[1740056312654,3.64166,2746.0,2745.7,0.55783505]
[1740056313148,4.1846,2746.1,2745.7,4.19982505]
[1740056313523,7.82614,2746.1,2745.7,4.19982505]
[1740056313705,4.1846,2746.1,2745.8,0.53767235]
[1740056313907,0.8046,2746.1,2745.8,0.53767235]
[1740056314136,0.8046,2746.1,2745.9,0.06894228]
[1740056315110,4.44614,2746.1,2745.9,0.06894228]
[1740056315314,3.64182,2745.9,2745.8,0.258]
[1740056316548,5.29991424,2746.0,2745.8,0.258]
[1740056316757,3.64179,2745.9,2745.8,0.258]
[1740056317853,1.65820424,2746.0,2745.8,0.258]
[1740056318057,1.65820424,2746.0,2745.5,3.6423]
[1740056318360,0.8148,2745.7,2745.6,0.258]
[1740056322260,5.30021424,2745.8,2745.6,0.258]
[1740056323662,5.30021424,2745.8,2745.7,0.06894228]
[1740056324722,5.30012424,2745.8,2745.7,0.06894228]
[1740056324947,6.11632424,2745.8,2745.7,0.06894228]
[1740056325124,0.8162,2745.8,2745.7,0.06894228]
[1740056325329,3.64185,2745.9,2745.7,0.06894228]
[1740056326546,5.29987424,2746.0,2745.7,0.06894228]
[1740056326857,3.64166,2746.0,2745.7,0.46585751]
[1740056327852,6.67703424,2746.1,2745.7,0.46585751]
[1740056328040,2.83,2746.2,2745.7,4.92904751]
[1740056328353,6.4714,2746.2,2745.7,4.92901751]
[1740056328552,6.4714,2746.2,2745.8,0.51870175]
[1740056328759,6.4714,2746.2,2745.8,4.22931296]
[1740056328963,2.83,2746.2,2745.8,4.22931296]
[1740056329342,6.4714,2746.2,2745.8,4.22931296]
[1740056329654,2.83,2746.2,2745.8,4.22931296]
[1740056329963,6.47145,2746.2,2745.9,0.8692473]
[1740056330596,6.47145,2746.2,2746.0,0.06871121]
[1740056330794,2.83,2746.2,2746.0,0.06871121]
[1740056336196,2.83,2746.2,2746.0,3.71035121]
[1740056336396,2.83,2746.2,2746.0,0.06871121]
[1740056336698,2.83,2746.2,2746.1,0.45797185]
[1740056337003,2.83,2746.2,2746.1,4.09949185]
[1740056337209,2.83,2746.2,2746.1,0.52668306]
[1740056339400,7.02118,2746.4,2746.1,0.52668306]
[1740056339820,2.83,2746.4,2746.2,3.64132]
[1740056340124,2.83,2746.4,2746.3,0.41680031]
[1740056340416,2.43080424,2746.5,2746.3,0.48442354]
[1740056340706,6.47093,2746.6,2746.3,4.12564354]
[1740056340707,2.83,2746.6,2746.3,4.12564354]
[1740056341326,0.7568,2746.8,2746.3,0.48442354]
[1740056341475,0.7568,2746.8,2746.4,3.899]
[1740056341979,0.7568,2746.8,2746.5,3.70850618]
[1740056343289,1.65820424,2746.9,2746.6,3.64078]
[1740056343787,1.65820424,2746.9,2746.7,0.06755618]
[1740056344089,1.65820424,2746.9,2746.7,0.4383898]
[1740056344389,1.65820424,2746.9,2746.7,0.06755618]
[1740056344596,1.65820424,2746.9,2746.5,3.64099]
[1740056344783,1.65820424,2746.9,2746.4,4.65553]
[1740056344784,3.0,2747.0,2746.8,0.06755618]
[1740056344988,3.0,2747.0,2746.5,3.64099]
[1740056345215,6.64033,2747.0,2746.9,0.06734017]
[1740056345415,6.64033,2747.0,2746.6,0.829652]
[1740056345617,6.64033,2747.0,2746.9,0.06734017]
[1740056345818,8.29853424,2747.0,2746.6,0.829652]
[1740056346024,8.29853424,2747.0,2746.9,0.06734017]
[1740056346230,8.29853424,2747.0,2746.6,0.829652]
[1740056346405,8.29853424,2747.0,2746.9,0.06734017]
[1740056346605,3.64046,2746.9,2746.5,3.64097]
[1740056346806,8.29853424,2747.0,2746.5,3.64097]
[1740056349902,3.64047,2746.9,2746.5,3.64097]
[1740056350092,3.64047,2746.9,2746.4,1.0145]
[1740056350299,3.64047,2746.9,2746.5,0.465566]
[1740056350650,1.65820424,2746.8,2746.5,0.465566]
[1740056351411,1.65820424,2746.8,2746.5,4.106546]
[1740056352244,5.29881424,2746.8,2746.5,0.465566]
[1740056352456,0.7728,2746.7,2746.4,0.258]
[1740056353547,4.41354,2746.7,2746.4,0.258]
[1740056353752,4.41354,2746.7,2746.5,0.06462632]
[1740056354240,4.41354,2746.7,2746.5,0.258]
[1740056354400,4.41354,2746.7,2746.6,0.06462632]
[1740056362158,4.96354,2746.7,2746.6,0.06462632]
[1740056362568,3.6411,2746.5,2746.3,0.258]
[1740056362721,3.6411,2746.5,2746.2,1.0473]
[1740056363064,3.64118,2746.4,2746.2,0.258]
[1740056368790,3.64126,2746.3,2746.2,0.258]
[1740056368947,3.64152,2746.1,2746.0,0.8104]
[1740056369151,3.64184,2745.9,2745.6,0.8284]
[1740056369363,3.64186,2745.9,2745.7,0.69231181]
[1740056369882,3.64186,2745.9,2745.8,0.0648721]
[1740056370089,3.64186,2745.9,2745.7,0.69231181]
[1740056370261,3.64186,2745.9,2745.8,0.0648721]
[1740056370463,3.64186,2745.9,2745.7,0.69231181]